bitfinex-derivatives/quotes_SOLF0:USTF0_20250106
["timestamp","ask_amount","ask_price","bid_price","bid_amount"]
[1736187526819,7.06388547,218.62,218.6,2.2869]
[1736187529929,7.06388547,218.62,218.55,7.06388547]
[1736187530125,7.06388547,218.6,218.56,2.8]
[1736187530623,7.06388547,218.6,218.58,2.287]
[1736187531825,7.06388547,218.6,218.56,2.2873]
[1736187532028,7.06388547,218.57,218.56,5.0873]
[1736187533626,7.06388547,218.59,218.57,2.2872]
[1736187534227,2.9331,218.66,218.56,2.8]
[1736187534228,2.2864,218.65,218.56,2.8]
[1736187534427,2.2864,218.65,218.57,7.06388547]
[1736187534428,7.06388547,218.63,218.57,7.06388547]
[1736187535433,7.06388547,218.63,218.58,2.287]
[1736187535731,7.06388547,218.63,218.57,7.06388547]
[1736187535932,7.06388547,218.63,218.6,2.2868]
[1736187536328,7.06388547,218.61,218.56,28.10313015]
[1736187536535,1.5088,218.66,218.58,6.53037736]
[1736187536729,1.5088,218.66,218.58,4.24327736]
[1736187536936,2.2868,218.62,218.58,4.24327736]
[1736187537126,2.2868,218.62,218.56,2.8]
[1736187537325,7.06388547,218.58,218.56,2.8]
[1736187538434,7.06388547,218.58,218.57,2.2872]
[1736187538829,7.06388547,218.58,218.56,2.8]
[1736187539034,7.06388547,218.58,218.56,2.2873]
[1736187543242,7.06388547,218.58,218.56,8.60046854]
[1736187543838,7.06388547,218.58,218.56,6.31316854]
[1736187544035,9.35098547,218.58,218.56,6.31316854]
[1736187544235,7.06388547,218.58,218.56,6.31316854]
[1736187544640,9.35098547,218.58,218.56,6.31316854]
[1736187545142,9.35098547,218.58,218.54,2.2875]
[1736187545442,7.06388547,218.56,218.54,2.2875]
[1736187545742,7.06388547,218.56,218.55,2.2874]
[1736187545943,2.8,218.64,218.53,6.31316854]
[1736187546143,7.06388547,218.59,218.57,2.2871]
[1736187548040,7.06388547,218.59,218.55,6.31316854]
[1736187548245,7.06388547,218.57,218.56,2.2873]
[1736187549043,7.06388547,218.57,218.55,8.60056854]
[1736187550249,7.06388547,218.6,218.57,2.2871]
[1736187550844,7.06388547,218.6,218.59,2.287]
[1736187551148,7.06388547,218.62,218.55,7.06388547]
[1736187551548,7.06388547,218.62,218.55,13.37705401]
[1736187552153,7.06388547,218.62,218.57,25.30313015]
[1736187552846,7.06388547,218.62,218.59,2.2869]
[1736187553046,7.06388547,218.62,218.58,7.0469543]
[1736187553246,7.06388547,218.62,218.59,2.287]
[1736187554953,7.06388547,218.6,218.59,2.287]
[1736187556449,7.06388547,218.6,218.58,2.8]
[1736187556651,7.06388547,218.6,218.58,5.0871]
[1736187557658,9.35078547,218.6,218.58,2.8]
[1736187557851,9.35078547,218.6,218.57,6.31316854]
[1736187558057,7.06388547,218.58,218.57,6.31316854]
[1736187559258,7.06388547,218.58,218.57,4.24768807]
[1736187561950,7.06388547,218.6,218.57,4.24768807]
[1736187562958,7.06388547,218.6,218.56,30.37043015]
[1736187563959,7.06388547,218.6,218.56,28.08313015]
[1736187564160,7.06388547,218.6,218.57,2.2872]
[1736187564662,7.06388547,218.58,218.56,25.30313015]
[1736187565455,9.35108547,218.58,218.56,25.30313015]
[1736187565852,9.35108547,218.58,218.55,6.31316854]
[1736187566057,7.06388547,218.56,218.55,6.31316854]
[1736187566659,7.06388547,218.56,218.55,4.24946289]
[1736187568062,7.06388547,218.56,218.55,6.53686289]
[1736187568256,7.06388547,218.58,218.55,6.53686289]
[1736187569055,7.06388547,218.58,218.55,2.2874]
[1736187570065,7.06388547,218.58,218.56,4.24908392]
[1736187570855,2.287,218.59,218.56,4.24908392]
[1736187571069,7.06388547,218.57,218.56,4.24908392]
[1736187571267,7.06388547,218.57,218.55,27.59053015]
[1736187572258,7.06388547,218.57,218.55,8.60056854]
[1736187574258,7.06388547,218.59,218.55,6.31316854]
[1736187574567,7.06388547,218.62,218.55,6.31316854]
[1736187575268,2.2868,218.61,218.57,2.2871]
[1736187576465,7.06388547,218.6,218.57,2.2871]
[1736187577367,7.06388547,218.6,218.57,8.60026854]
[1736187579669,7.06388547,218.6,218.58,4.24925062]
[1736187580270,7.06388547,218.6,218.57,8.60026854]
[1736187581771,7.06388547,218.6,218.57,6.31316854]
[1736187581976,7.06388547,218.62,218.6,2.2868]
[1736187582170,7.06388547,218.62,218.56,25.30313015]
[1736187582975,7.06388547,218.62,218.58,6.31316854]
[1736187583273,7.06388547,218.62,218.59,2.78]
[1736187583473,7.06388547,218.62,218.61,2.2868]
[1736187584870,7.06388547,218.62,218.6,2.2869]
[1736187586072,7.06388547,218.62,218.61,2.2868]
[1736187589075,11.51674167,218.71,218.59,9.84388547]
[1736187589076,8.67214167,218.71,218.59,9.84388547]
[1736187589280,2.286,218.69,218.66,2.2862]
[1736187589578,7.06388547,218.68,218.65,2.78]
[1736187589773,7.06388547,218.68,218.66,2.2862]
[1736187591173,9.34978547,218.7,218.66,2.2862]
[1736187591380,8.67214167,218.77,218.65,2.78]
[1736187591575,7.06388547,218.71,218.65,2.78]
[1736187592379,7.06388547,218.71,218.68,2.286]
[1736187596283,7.06388547,218.69,218.63,2.8703]
[1736187596487,7.06388547,218.66,218.64,2.78]
[1736187597077,7.06388547,218.66,218.64,5.0665]
[1736187598385,7.06388547,218.68,218.64,2.78]
[1736187598583,8.67214167,218.77,218.67,7.06388547]
[1736187598781,7.06388547,218.76,218.69,7.06388547]
[1736187598982,9.34918547,218.76,218.71,2.2857]
[1736187599981,9.34918547,218.76,218.7,2.78]
[1736187600781,2.2853,218.76,218.7,2.78]
[1736187600987,7.06388547,218.75,218.7,2.78]
[1736187601486,7.06388547,218.75,218.72,2.2856]
[1736187604999,9.34878547,218.79,218.74,2.2853]
[1736187609391,66.96906457,218.87,218.75,7.06388547]
[1736187609587,7.06388547,218.83,218.77,7.06388547]
[1736187609791,7.06388547,218.83,218.78,2.78]
[1736187610092,65.51876457,218.87,218.78,2.78]
[1736187610093,7.06388547,218.87,218.79,7.06388547]
[1736187610396,7.06388547,218.88,218.84,2.2843]
[1736187610595,7.06388547,218.88,218.81,7.06388547]
[1736187611196,7.06388547,218.88,218.85,2.2843]
[1736187611495,7.06388547,218.88,218.85,5.0643]
[1736187611697,7.06388547,218.88,218.85,2.78]
[1736187611896,1.5337,219.0,218.85,9.84388547]
[1736187612196,1.5337,219.0,218.87,7.06388547]
[1736187612391,7.06388547,218.96,218.87,7.06388547]
[1736187612590,1.5337,219.0,218.89,7.06388547]
[1736187612790,7.06388547,218.97,218.89,7.06388547]
[1736187613288,7.06388547,218.95,218.9,2.78]
[1736187613490,7.06388547,218.95,218.91,2.78]
[1736187614592,9.34718547,218.95,218.91,2.78]
[1736187615895,7.06388547,218.95,218.91,2.78]
[1736187616095,7.06388547,218.95,218.91,5.0636]
[1736187616287,2.283,218.97,218.91,2.78]
[1736187616489,9.34688547,218.97,218.91,2.78]
[1736187617095,1.5816,219.08,218.91,9.84388547]
[1736187617293,7.06388547,218.98,218.95,2.2832]
[1736187617491,7.06388547,218.96,218.91,2.78]
[1736187617895,7.06388547,218.94,218.91,2.78]
[1736187619191,9.34728547,218.94,218.91,2.78]
[1736187619396,7.06388547,218.94,218.91,2.78]
[1736187619603,7.06388547,218.92,218.8,1.532]
[1736187619807,7.06388547,218.82,218.8,4.312]
[1736187620108,7.06388547,218.84,218.8,2.78]
[1736187620309,7.06388547,218.84,218.81,2.2847]
[1736187620911,2.2841,218.87,218.81,2.2847]
[1736187621107,13.31246643,218.87,218.81,2.2847]
[1736187621907,13.31246643,218.87,218.82,2.2846]
[1736187622508,11.02836643,218.87,218.82,2.2846]
[1736187623310,13.31246643,218.87,218.82,2.2846]
[1736187625011,11.02836643,218.87,218.81,2.78]
[1736187625610,13.31256643,218.87,218.81,5.0647]
[1736187625815,11.02836643,218.9,218.81,2.78]
[1736187626214,13.31216643,218.9,218.84,2.2843]
[1736187626811,13.31216643,218.9,218.85,2.2842]
[1736187627413,2.2842,218.86,218.81,5.0646]
[1736187627717,11.02836643,218.9,218.79,85.97599006]
[1736187627718,11.02836643,218.84,218.79,85.97599006]
[1736187628014,11.02836643,218.84,218.81,2.2846]
[1736187628216,11.02836643,218.87,218.79,85.97599006]
[1736187629415,2.2843,218.85,218.81,2.2847]
[1736187629818,11.02836643,218.87,218.79,83.19599006]
[1736187630020,2.2845,218.84,218.79,85.48079006]
[1736187630220,2.2845,218.84,218.79,83.19599006]
[1736187630918,2.2845,218.84,218.8,2.2847]
[1736187633520,11.02836643,218.87,218.79,83.19599006]
[1736187633720,2.2843,218.85,218.81,2.2846]
[1736187634521,2.2843,218.85,218.82,2.2846]
[1736187635225,2.284,218.88,218.84,2.2843]
[1736187635820,2.2841,218.87,218.84,2.2843]
[1736187636721,2.2843,218.86,218.82,2.2845]
[1736187636923,11.02836643,218.9,218.79,83.19599006]
[1736187637529,11.02836643,218.9,218.81,2.2846]
[1736187637530,2.2844,218.85,218.81,2.2846]
[1736187637730,11.02836643,218.9,218.81,2.2846]
[1736187638125,11.02836643,218.9,218.78,2.78]
[1736187638324,11.02836643,218.9,218.82,2.2846]
[1736187638521,2.2843,218.86,218.82,2.2846]
[1736187638725,11.02836643,218.9,218.82,2.2846]
[1736187639927,2.284,218.88,218.78,2.78]
[1736187641020,7.05615077,218.87,218.81,7.05615077]
[1736187641632,9.34025077,218.87,218.81,7.05615077]
[1736187642026,7.05615077,218.85,218.79,7.05615077]
[1736187642623,7.05615077,218.85,218.82,2.2845]
[1736187643029,2.2841,218.87,218.82,2.2845]
[1736187643230,7.05615077,218.86,218.82,2.2845]
[1736187643929,7.05615077,218.84,218.8,2.2848]
[1736187644434,7.05615077,218.82,218.79,2.78]
[1736187644735,7.05615077,218.82,218.78,25.30313015]
[1736187645137,7.05615077,218.82,218.77,2.78]
[1736187645434,2.2847,218.81,218.77,5.0651]
[1736187645635,7.05615077,218.82,218.77,5.0651]
[1736187645835,7.05615077,218.82,218.77,2.78]
[1736187646136,9.34085077,218.82,218.78,2.285]
[1736187647634,7.05615077,218.82,218.79,2.2849]
[1736187648336,2.78,218.88,218.76,2.78]
[1736187648337,0.06,218.92,218.76,2.78]
[1736187648536,7.05615077,218.86,218.79,7.05615077]
[1736187649238,7.05615077,218.84,218.81,2.2847]
[1736187653241,7.05615077,218.84,218.77,13.36931931]
[1736187653442,7.05615077,218.84,218.82,2.2846]
[1736187654338,2.2843,218.85,218.79,6.31316854]
[1736187654640,7.05615077,218.84,218.83,2.2845]
[1736187655538,7.05615077,218.84,218.82,2.2846]
[1736187656239,2.2843,218.85,218.82,2.2846]
[1736187656841,7.05615077,218.86,218.8,25.30313015]
[1736187657041,9.34035077,218.86,218.83,2.2845]
[1736187657438,2.2843,218.85,218.81,2.2846]
[1736187657738,7.05615077,218.86,218.8,25.30313015]
[1736187658236,9.34035077,218.86,218.82,2.2845]
[1736187658433,9.34035077,218.86,218.82,6.52945922]
[1736187658840,7.05615077,218.84,218.82,6.52945922]
[1736187659142,7.05615077,218.84,218.82,4.24495922]
[1736187659840,7.05615077,218.84,218.8,6.31316854]
[1736187660042,7.05615077,218.82,218.8,6.31316854]
[1736187660540,2.2849,218.79,218.78,25.30313015]
[1736187661342,2.2849,218.79,218.75,6.31316854]
[1736187661539,7.05615077,218.78,218.75,6.31316854]
[1736187662039,7.05615077,218.76,218.75,8.59846854]
[1736187662235,7.05615077,218.78,218.75,6.31316854]
[1736187662841,7.05615077,218.8,218.77,2.2851]
[1736187663436,9.34095077,218.8,218.77,2.2851]
[1736187664352,9.34095077,218.8,218.76,8.59836854]
[1736187664644,9.34095077,218.8,218.76,6.31316854]
[1736187665441,9.34095077,218.8,218.77,2.2851]
[1736187667146,7.05615077,218.82,218.75,6.31316854]
[1736187667542,7.05615077,218.82,218.76,6.31316854]
[1736187668251,7.05615077,218.78,218.76,6.31316854]
[1736187668949,7.05615077,218.78,218.75,6.31316854]
[1736187669647,7.05615077,218.78,218.76,2.2852]
[1736187671946,9.34115077,218.78,218.74,8.59856854]
[1736187672141,7.05615077,218.76,218.74,6.31316854]
[1736187672542,7.05615077,218.76,218.73,25.30313015]
[1736187672742,7.05615077,218.74,218.73,25.30313015]
[1736187673750,7.05615077,218.74,218.72,2.2856]
[1736187674050,7.05615077,218.74,218.71,30.36883015]
[1736187674450,7.05615077,218.74,218.71,11.37886854]
[1736187674948,7.05615077,218.76,218.73,2.2855]
[1736187676446,2.78,218.86,218.73,2.2855]
[1736187676644,7.05615077,218.76,218.73,2.2855]
[1736187677050,9.34135077,218.76,218.72,2.2856]
[1736187677855,7.05615077,218.76,218.73,2.2855]
[1736187681056,2.2853,218.75,218.72,2.2856]
[1736187681251,7.05615077,218.74,218.7,28.08313015]
[1736187681846,7.05615077,218.72,218.7,28.08313015]
[1736187682054,7.05615077,218.72,218.7,2.78]
[1736187682351,7.05615077,218.72,218.7,2.2858]
[1736187682555,9.34165077,218.74,218.7,2.2858]
[1736187683059,9.34165077,218.74,218.7,8.59896854]
[1736187683555,9.34165077,218.74,218.71,2.2857]
[1736187685256,9.34165077,218.74,218.7,2.2858]
[1736187687153,7.05615077,218.74,218.69,6.31316854]
[1736187687357,2.78,218.81,218.69,6.31316854]
[1736187687358,7.05615077,218.72,218.69,8.59906854]
[1736187687755,7.05615077,218.72,218.69,6.31316854]
[1736187688258,7.05615077,218.72,218.7,2.2858]
[1736187689261,9.34155077,218.74,218.7,2.2858]
[1736187692668,7.05615077,218.74,218.72,2.2856]
[1736187692857,2.945,218.8,218.69,25.30313015]
[1736187693059,6.18454421,218.93,218.72,7.05615077]
[1736187693260,7.05615077,218.83,218.76,7.05615077]
[1736187693459,2.78,218.91,218.8,7.05615077]
[1736187693666,7.05615077,218.86,218.83,2.2845]
[1736187695970,7.05615077,218.86,218.8,7.05615077]
[1736187696170,2.2841,218.87,218.84,2.2844]
[1736187696669,7.05615077,218.88,218.8,13.36931931]
[1736187697167,7.05615077,218.88,218.8,7.05615077]
[1736187698070,7.05615077,218.88,218.8,13.36931931]
[1736187698677,7.05615077,218.88,218.81,4.23459129]
[1736187699065,7.05615077,218.86,218.84,2.2843]
[1736187699977,8.68888211,218.94,218.82,7.05615077]
[1736187700277,7.05615077,218.89,218.82,7.05615077]
[1736187700767,7.05615077,218.89,218.87,2.2841]
[1736187700973,7.05615077,218.92,218.85,2.78]
[1736187701171,65.49177298,218.96,218.86,7.05615077]
[1736187701477,7.05615077,218.93,218.9,2.2837]
[1736187702773,2.2832,218.96,218.91,2.2836]
[1736187702971,7.05615077,218.95,218.88,7.05615077]
[1736187703277,4.5624,219.15,218.88,7.05615077]
[1736187703479,7.05615077,218.97,218.9,7.05615077]
[1736187703773,7.05615077,218.97,218.94,2.2833]
[1736187704278,7.05615077,218.95,218.91,2.78]
[1736187704478,7.05615077,218.95,218.86,4.4809]
[1736187704479,7.05615077,218.92,218.86,4.4809]
[1736187704678,7.05615077,218.89,218.86,4.4809]
[1736187705080,7.05615077,218.91,218.86,4.4809]
[1736187706580,7.05615077,218.91,218.87,2.284]
[1736187707882,2.76,218.99,218.86,4.4809]
[1736187708082,7.05615077,218.94,218.86,11.53705077]
[1736187708677,7.05615077,218.94,218.92,2.2835]
[1736187712884,2.2831,218.97,218.92,2.2835]
[1736187713084,7.05615077,218.96,218.93,2.2834]
[1736187718686,1.409,219.04,218.93,2.2834]
[1736187718889,2.2825,219.03,218.98,9.33895077]
[1736187719084,14.53752214,219.05,218.98,7.05615077]
[1736187719292,7.05615077,219.03,219.0,2.2827]
[1736187719593,7.05615077,219.01,218.96,2.76]
[1736187719792,7.05615077,218.99,218.96,2.76]
[1736187720690,7.05615077,218.97,218.94,5.0433]
[1736187721991,7.05615077,218.97,218.94,2.76]
[1736187722193,7.05615077,218.97,218.95,2.2832]
[1736187722392,7.05615077,218.97,218.94,2.76]
[1736187722393,9.33915077,218.97,218.92,2.76]
[1736187722593,7.05615077,218.95,218.92,2.76]
[1736187723697,7.05615077,218.95,218.92,5.0435]
[1736187723889,7.05615077,218.95,218.92,2.76]
[1736187724594,7.05615077,218.97,218.92,2.76]
[1736187724789,1.529,219.04,218.92,9.81615077]
[1736187724993,7.05615077,218.99,218.92,9.81615077]
[1736187725492,7.05615077,218.94,218.92,2.76]
[1736187725887,7.05615077,218.94,218.86,4.4809]
[1736187726093,7.05615077,218.92,218.89,5.0438]
[1736187726285,7.05615077,218.92,218.89,2.76]
[1736187726897,7.05615077,218.92,218.9,2.2837]
[1736187727091,2.2833,218.95,218.9,2.2837]
[1736187727595,2.2833,218.94,218.9,2.2837]
[1736187729198,11.02029497,218.96,218.91,2.2836]
[1736187729393,2.76,219.01,218.89,2.76]
[1736187729394,11.02029497,218.99,218.89,2.76]
[1736187729591,11.02029497,219.02,218.89,2.76]
[1736187729795,11.02029497,219.02,218.95,2.2831]
[1736187730399,2.2828,219.0,218.89,2.76]
[1736187730599,11.02029497,219.02,218.89,2.76]
[1736187730996,11.02029497,219.02,218.92,6.31316854]
[1736187731298,2.2827,219.0,218.96,2.2831]
[1736187732796,11.02029497,219.02,218.94,2.76]
[1736187732997,13.30279497,219.02,218.97,2.2829]
[1736187733391,11.02029497,219.02,218.94,2.76]
[1736187733596,7.48137137,219.05,219.01,2.2825]
[1736187734497,9.76357137,219.05,219.01,2.2825]
[1736187735406,7.48137137,219.05,219.0,2.2826]
[1736187735602,7.48137137,219.05,218.99,2.76]
[1736187736198,7.48137137,219.05,219.03,2.2823]
[1736187736599,12.52089497,219.1,219.03,2.2823]
[1736187737105,11.02029497,219.07,219.01,2.2825]
[1736187737296,1.5006,219.1,218.99,9.07316854]
[1736187737297,12.52089497,219.1,218.99,9.07316854]
[1736187737701,12.52089497,219.1,218.99,2.76]
[1736187738402,2.2821,219.07,219.03,2.2823]
[1736187739501,2.2821,219.07,218.99,9.07316854]
[1736187739708,2.2821,219.07,219.04,2.2823]
[1736187740807,2.2819,219.08,219.05,2.2822]
[1736187741006,11.02029497,219.12,219.04,2.76]
[1736187741804,8.66676565,219.16,219.04,2.76]
[1736187742213,11.02029497,219.17,219.04,2.76]
[1736187742413,2.2814,219.13,219.04,2.76]
[1736187742608,2.2814,219.13,219.05,1.523]
[1736187742913,2.2814,219.13,219.07,2.2819]
[1736187743113,2.2814,219.13,219.05,4.4396]
[1736187743709,2.2814,219.13,219.07,2.2819]
[1736187744114,8.66676565,219.2,219.05,4.4396]
[1736187744115,2.2807,219.19,219.06,11.02029497]
[1736187744413,8.66676565,219.2,219.13,2.2813]
[1736187744608,8.66676565,219.2,219.13,2.76]
[1736187744809,11.02029497,219.21,219.13,2.76]
[1736187745714,2.2808,219.19,219.14,2.2813]
[1736187745917,11.02029497,219.21,219.14,2.2813]
[1736187746313,2.2807,219.2,219.15,2.2811]
[1736187747205,2.76,219.32,219.18,2.2808]
[1736187747413,11.02029497,219.23,219.13,2.76]
[1736187747714,8.65069863,219.29,219.13,5.0413]
[1736187747913,11.02029497,219.19,219.13,2.76]
[1736187748215,2.2809,219.18,219.13,2.76]
[1736187748411,11.02029497,219.19,219.13,5.0413]
[1736187748607,11.02029497,219.22,219.13,2.76]
[1736187749014,11.02029497,219.22,219.14,2.2813]
[1736187749816,2.281,219.17,219.14,2.2813]
[1736187750007,11.02029497,219.22,219.14,2.2813]
[1736187750513,2.2814,219.14,219.09,2.2817]
[1736187750816,11.02029497,219.16,219.08,2.76]
[1736187751719,2.2813,219.14,219.1,2.2816]
[1736187752320,2.281,219.17,219.11,2.2815]
[1736187752519,2.281,219.17,219.08,2.76]
[1736187752719,11.02029497,219.19,219.08,2.76]
[1736187752922,13.97209497,219.22,219.09,11.02029497]
[1736187753220,13.97209497,219.22,219.13,2.2813]
[1736187754017,2.2811,219.16,219.13,2.2813]
[1736187754420,13.97209497,219.22,219.09,11.02029497]
[1736187755321,2.2808,219.19,219.13,2.2813]
[1736187755619,11.02029497,219.19,219.13,2.76]
[1736187757418,2.281,219.17,219.13,5.0413]
[1736187760619,11.02029497,219.19,219.13,2.76]
[1736187760816,2.2811,219.16,219.13,2.76]
[1736187761014,11.02029497,219.19,219.06,11.02029497]
[1736187761214,11.02029497,219.16,219.07,2.76]
[1736187761411,11.02029497,219.19,219.1,2.2816]
[1736187762520,11.02029497,219.19,219.08,2.2818]
[1736187762713,11.02029497,219.19,219.07,2.76]
[1736187762917,2.2813,219.14,219.07,2.76]
[1736187763323,2.2813,219.14,219.09,2.2817]
[1736187764720,11.02029497,219.19,219.08,2.2819]
[1736187764919,11.02029497,219.19,219.07,2.76]
[1736187765121,7.03885147,219.15,219.08,7.03885147]
[1736187765321,9.32005147,219.15,219.1,2.2817]
[1736187765520,7.03885147,219.15,219.1,2.2817]
[1736187766016,7.03885147,219.15,219.09,2.2818]
[1736187766417,2.2814,219.13,219.09,2.76]
[1736187766616,7.03885147,219.15,219.1,2.2816]
[1736187767419,2.2813,219.14,219.1,2.2816]
[1736187768722,7.03885147,219.13,219.09,2.76]
[1736187768924,7.03885147,219.11,219.09,2.76]
[1736187769224,7.03885147,219.11,219.08,2.2818]
[1736187769820,7.03885147,219.11,219.07,2.76]
[1736187770016,9.32045147,219.11,219.07,2.76]
[1736187770220,9.32045147,219.11,219.06,2.76]
[1736187771525,9.32045147,219.11,219.07,2.282]
[1736187773129,7.03885147,219.11,219.06,2.76]
[1736187773317,2.2816,219.12,219.08,2.2819]
[1736187773625,7.03885147,219.1,219.08,2.2819]
[1736187774820,2.76,219.18,219.1,2.2816]
[1736187775125,7.03885147,219.12,219.1,2.2816]
[1736187776021,7.03885147,219.12,219.07,6.30374794]
[1736187776225,7.03885147,219.08,219.07,6.30374794]
[1736187777123,9.32055147,219.1,219.07,6.30374794]
[1736187777326,2.76,219.18,219.06,6.30374794]
[1736187777531,7.03885147,219.12,219.07,7.03885147]
[1736187778032,7.03885147,219.12,219.1,2.2816]
[1736187778329,2.8169,219.21,219.1,2.2816]
[1736187778521,2.8169,219.21,219.08,4.23960089]
[1736187778522,7.03885147,219.13,219.11,2.2816]
[1736187779731,2.2813,219.14,219.11,2.2816]
[1736187779931,7.03885147,219.12,219.11,2.2816]
[1736187781335,2.2813,219.14,219.11,2.2816]
[1736187781631,7.03885147,219.13,219.11,2.2816]
[1736187782230,8.65310346,219.21,219.1,2.76]
[1736187782427,7.03885147,219.17,219.11,7.03885147]
[1736187782827,7.03885147,219.17,219.14,2.2812]
[1736187783927,8.65310346,219.24,219.17,2.2809]
[1736187784131,7.03885147,219.21,219.17,2.2809]
[1736187784829,9.31945147,219.21,219.17,2.2809]
[1736187785127,9.31945147,219.21,219.18,2.2808]
[1736187785333,2.2806,219.2,219.18,2.2808]
[1736187785632,2.2806,219.2,219.17,2.2809]
[1736187787034,8.65310346,219.26,219.15,9.79885147]
[1736187787336,7.03885147,219.23,219.17,7.03885147]
[1736187788633,2.2805,219.22,219.18,2.2808]
[1736187788933,7.03885147,219.21,219.18,2.2808]
[1736187789231,2.2807,219.2,219.17,2.76]
[1736187790229,9.31935147,219.21,219.17,2.76]
[1736187790739,7.03885147,219.21,219.17,2.76]
[1736187790938,2.2807,219.2,219.17,2.76]
[1736187791839,9.31935147,219.21,219.17,2.76]
[1736187792341,9.31935147,219.21,219.17,5.0409]
[1736187792539,8.65310346,219.26,219.17,5.0409]
[1736187792540,7.03885147,219.29,219.2,7.03885147]
[1736187792740,6.18913817,219.38,219.26,7.03885147]
[1736187792941,9.31805147,219.35,219.28,7.03885147]
[1736187793238,9.31805147,219.35,219.29,5.0396]
[1736187793440,7.03885147,219.31,219.25,7.03885147]
[1736187793742,7.03885147,219.31,219.26,2.76]
[1736187794538,7.03885147,219.31,219.27,2.76]
[1736187794936,7.03885147,219.31,219.28,2.76]
[1736187795134,2.2798,219.28,219.27,2.76]
[1736187795531,6.17654779,219.39,219.23,2.2803]
[1736187795532,10.98052682,219.3,219.23,2.2803]
[1736187795743,2.2798,219.28,219.24,2.76]
[1736187797643,2.2799,219.27,219.24,2.76]
[1736187797838,10.98052682,219.27,219.18,1.4444]
[1736187798033,10.98052682,219.27,219.19,2.76]
[1736187798234,2.2801,219.26,219.21,2.2805]
[1736187798643,2.2801,219.26,219.19,2.76]
[1736187799443,2.2801,219.26,219.22,2.2804]
[1736187801645,2.2801,219.26,219.23,2.76]
[1736187801845,2.2801,219.26,219.22,2.2804]
[1736187802145,2.2801,219.26,219.23,2.76]
[1736187803945,2.2802,219.25,219.23,2.76]
[1736187807350,10.98052682,219.3,219.23,2.76]
[1736187807557,2.2802,219.24,219.23,2.76]
[1736187808258,2.2801,219.25,219.23,2.76]
[1736187808455,10.98052682,219.3,219.23,2.76]
[1736187809255,2.2802,219.25,219.23,2.76]
[1736187811663,10.98052682,219.3,219.23,5.0403]
[1736187813062,2.2801,219.26,219.23,5.0403]
[1736187815557,2.2801,219.25,219.23,5.0403]
[1736187815959,2.2801,219.25,219.23,2.76]
[1736187816764,2.2801,219.25,219.22,2.2804]
[1736187816956,2.2801,219.25,219.23,2.76]
[1736187819854,1.4745,219.31,219.23,2.76]
[1736187820059,1.4745,219.31,219.24,2.2802]
[1736187820060,7.03144666,219.27,219.24,2.2802]
[1736187820462,2.28,219.26,219.24,2.2802]
[1736187821166,7.03144666,219.27,219.23,2.76]
[1736187821366,2.2802,219.24,219.23,2.76]
[1736187821563,7.03144666,219.27,219.23,2.76]
[1736187822565,2.2801,219.25,219.23,2.76]
[1736187823266,2.2801,219.25,219.23,5.0403]
[1736187823466,2.28,219.26,219.23,5.0403]
[1736187825868,7.03144666,219.28,219.23,2.76]
[1736187826167,2.2801,219.25,219.23,2.76]
[1736187828168,7.03144666,219.24,219.2,25.21499177]
[1736187828369,9.31194666,219.22,219.21,2.76]
[1736187829867,2.2806,219.21,219.19,25.21499177]
[1736187830068,7.03144666,219.2,219.19,25.21499177]
[1736187830476,2.2807,219.19,219.18,25.21499177]
[1736187831269,2.2807,219.19,219.17,2.76]
[1736187831675,2.2808,219.18,219.17,2.76]
[1736187832771,2.2809,219.17,219.16,25.21499177]
[1736187833174,7.03144666,219.18,219.17,4.23843119]
[1736187833676,9.31234666,219.18,219.17,4.23843119]
[1736187834278,2.281,219.17,219.13,11.34504794]
[1736187835574,2.281,219.17,219.13,5.0413]
[1736187836177,2.281,219.17,219.13,2.2813]
[1736187836373,2.281,219.17,219.13,5.0413]
[1736187837067,9.31254666,219.16,219.12,25.21499177]
[1736187837274,9.31254666,219.16,219.13,2.76]
[1736187838274,1.4291,219.25,219.11,6.30374794]
[1736187838275,7.03144666,219.14,219.11,6.30374794]
[1736187838577,7.03144666,219.12,219.11,6.30374794]
[1736187839174,7.03144666,219.12,219.1,2.76]